[Event "Titled Tuesday Blitz August 02 Early 2022"]
[White "Harmon-Vellotti, Luke"]
[Black "Lobanov, Sergei"]
[WhiteFideId "2030012"]
[BlackFideId "24183750"]
[WhiteElo "2354"]
[BlackElo "2524"]
[Result "1/2-1/2"]
[Round "10"]
[TimeControl "180+1"]
[Date "2022.08.02"]
[WhiteClock "0:00:15"]
[BlackClock "0:00:09"]

1. e4 {[%clk 0:03:00]}  e5 {[%clk 0:03:00]} 2. Nf3 {[%clk 0:03:00]}  Nc6 {[%clk 0:03:00]} 3. Bb5 {[%clk 0:03:00]}  a6 {[%clk 0:03:00]} 4. Ba4 {[%clk 0:03:01]}  Bc5 {[%clk 0:03:00]} 5. c3 {[%clk 0:02:44]}  Ba7 {[%clk 0:02:59]} 6. O-O {[%clk 0:02:36]}  Nge7 {[%clk 0:02:59]} 7. d4 {[%clk 0:02:33]}  Ng6 {[%clk 0:02:59]} 8. Be3 {[%clk 0:02:29]}  O-O {[%clk 0:02:58]} 9. Nbd2 {[%clk 0:02:28]}  exd4 {[%clk 0:02:59]} 10. cxd4 {[%clk 0:02:28]}  d5 {[%clk 0:02:59]} 11. e5 {[%clk 0:02:26]}  Nce7 {[%clk 0:02:59]} 12. Bc2 {[%clk 0:02:15]}  Bf5 {[%clk 0:02:44]} 13. Re1 {[%clk 0:02:08]}  Qd7 {[%clk 0:02:38]} 14. Rc1 {[%clk 0:02:07]}  c6 {[%clk 0:02:35]} 15. Nb3 {[%clk 0:02:06]}  Rae8 {[%clk 0:02:33]} 16. Bg5 {[%clk 0:01:47]}  h6 {[%clk 0:02:06]} 17. Bd2 {[%clk 0:01:45]}  f6 {[%clk 0:01:57]} 18. exf6 {[%clk 0:01:07]}  Rxf6 {[%clk 0:01:58]} 19. Ne5 {[%clk 0:01:06]}  Nxe5 {[%clk 0:01:55]} 20. Rxe5 {[%clk 0:01:07]}  Bxc2 {[%clk 0:01:34]} 21. Qxc2 {[%clk 0:01:07]}  Nf5 {[%clk 0:01:33]} 22. Rxe8+ {[%clk 0:01:07]}  Qxe8 {[%clk 0:01:34]} 23. Qd3 {[%clk 0:01:06]}  Qh5 {[%clk 0:01:18]} 24. h3 {[%clk 0:00:57]}  Qh4 {[%clk 0:01:16]} 25. Bc3 {[%clk 0:00:53]}  Nd6 {[%clk 0:01:09]} 26. Rc2 {[%clk 0:00:48]}  Ne4 {[%clk 0:01:08]} 27. Be1 {[%clk 0:00:48]}  Bb8 {[%clk 0:01:03]} 28. Nc5 {[%clk 0:00:40]}  Qf4 {[%clk 0:00:41]} 29. g3 {[%clk 0:00:25]}  Qf5 {[%clk 0:00:29]} 30. Re2 {[%clk 0:00:18]}  Nxc5 {[%clk 0:00:14]} 31. Qxf5 {[%clk 0:00:18]}  Rxf5 {[%clk 0:00:14]} 32. dxc5 {[%clk 0:00:19]}  Re5 {[%clk 0:00:14]} 33. Kf1 {[%clk 0:00:15]}  Kf7 {[%clk 0:00:14]} 34. Bc3 {[%clk 0:00:15]}  Rxe2 {[%clk 0:00:12]} 35. Kxe2 {[%clk 0:00:16]}  g6 {[%clk 0:00:12]} 36. Ke3 {[%clk 0:00:16]}  Ke6 {[%clk 0:00:13]} 37. f4 {[%clk 0:00:16]}  h5 {[%clk 0:00:10]} 38. g4 {[%clk 0:00:17]}  hxg4 {[%clk 0:00:11]} 39. hxg4 {[%clk 0:00:18]}  Bc7 {[%clk 0:00:12]} 40. Kf3 {[%clk 0:00:18]}  Bd8 {[%clk 0:00:11]} 41. Ke3 {[%clk 0:00:18]}  b5 {[%clk 0:00:08]} 42. b4 {[%clk 0:00:14]}  Be7 {[%clk 0:00:07]} 43. Kf3 {[%clk 0:00:14]}  Bh4 {[%clk 0:00:07]} 44. Ke2 {[%clk 0:00:14]}  Bg3 {[%clk 0:00:06]} 45. Kf3 {[%clk 0:00:15]}  Bh4 {[%clk 0:00:06]} 46. Ke2 {[%clk 0:00:15]}  Bf6 {[%clk 0:00:07]} 47. Bxf6 {[%clk 0:00:15]}  Kxf6 {[%clk 0:00:08]} 48. Ke3 {[%clk 0:00:16]}  Ke6 {[%clk 0:00:08]} 49. Kd4 {[%clk 0:00:16]}  Kf6 {[%clk 0:00:08]} 50. Ke3 {[%clk 0:00:17]}  g5 {[%clk 0:00:09]} 51. f5 {[%clk 0:00:16]}  Ke5 {[%clk 0:00:09]} 52. Kd3 {[%clk 0:00:16]}  Kf6 {[%clk 0:00:10]} 53. Kd4 {[%clk 0:00:17]}  Kf7 {[%clk 0:00:09]} 54. Ke5 {[%clk 0:00:17]}  Kg7 {[%clk 0:00:06]} 55. f6+ {[%clk 0:00:10]}  Kf7 {[%clk 0:00:07]} 56. Kf5 {[%clk 0:00:11]}  d4 {[%clk 0:00:07]} 57. Ke4 {[%clk 0:00:11]}  Kxf6 {[%clk 0:00:08]} 58. Kxd4 {[%clk 0:00:12]}  Ke6 {[%clk 0:00:07]} 59. Ke4 {[%clk 0:00:13]}  Kf6 {[%clk 0:00:08]} 60. Kd4 {[%clk 0:00:13]}  Ke6 {[%clk 0:00:09]} 61. Ke4 {[%clk 0:00:14]}  Kf6 {[%clk 0:00:09]} 62. Kd4 {[%clk 0:00:15]} 1/2-1/2


[Site "https://www.chess.com"]

[Event "Titled Tuesday Blitz August 02 Early 2022"]
[White "Harshavardhan G B"]
[Black "Jakubowski, Krzysztof"]
[WhiteFideId "25059009"]
[BlackFideId "1112848"]
[WhiteElo "1831"]
[BlackElo "2365"]
[Result "1-0"]
[Round "10"]
[TimeControl "180+1"]
[Date "2022.08.02"]
[WhiteClock "0:00:22"]
[BlackClock "0:00:22"]

1. e4 {[%clk 0:03:00]}  c6 {[%clk 0:02:59]} 2. d4 {[%clk 0:02:59]}  d5 {[%clk 0:02:59]} 3. e5 {[%clk 0:02:59]}  Bf5 {[%clk 0:02:58]} 4. h4 {[%clk 0:02:59]}  Qb6 {[%clk 0:02:57]} 5. g4 {[%clk 0:02:50]}  Bd7 {[%clk 0:02:55]} 6. h5 {[%clk 0:02:50]}  e6 {[%clk 0:02:45]} 7. Nc3 {[%clk 0:02:49]}  c5 {[%clk 0:02:39]} 8. Be3 {[%clk 0:02:31]}  Nc6 {[%clk 0:02:24]} 9. Nge2 {[%clk 0:02:26]}  Rc8 {[%clk 0:02:00]} 10. Bg2 {[%clk 0:01:54]}  cxd4 {[%clk 0:01:47]} 11. Nxd4 {[%clk 0:01:55]}  Nxd4 {[%clk 0:01:45]} 12. Bxd4 {[%clk 0:01:52]}  Bc5 {[%clk 0:01:44]} 13. Ne2 {[%clk 0:01:47]}  Nh6 {[%clk 0:01:32]} 14. Bxc5 {[%clk 0:01:32]}  Rxc5 {[%clk 0:01:28]} 15. Nd4 {[%clk 0:01:32]}  Qxb2 {[%clk 0:01:24]} 16. O-O {[%clk 0:01:27]}  Rc4 {[%clk 0:01:21]} 17. Nf3 {[%clk 0:01:12]}  Qxc2 {[%clk 0:01:10]} 18. Qxc2 {[%clk 0:01:08]}  Rxc2 {[%clk 0:01:09]} 19. Rab1 {[%clk 0:01:08]}  b6 {[%clk 0:01:04]} 20. Rfc1 {[%clk 0:01:01]}  Rxa2 {[%clk 0:01:01]} 21. Rc7 {[%clk 0:00:45]}  Nxg4 {[%clk 0:00:57]} 22. Rbc1 {[%clk 0:00:42]}  Ke7 {[%clk 0:00:56]} 23. Rb7 {[%clk 0:00:39]}  Rd8 {[%clk 0:00:54]} 24. Rcc7 {[%clk 0:00:34]}  Nxf2 {[%clk 0:00:53]} 25. Bf1 {[%clk 0:00:33]}  Ne4 {[%clk 0:00:49]} 26. Nd4 {[%clk 0:00:28]}  Ke8 {[%clk 0:00:25]} 27. Rxd7 {[%clk 0:00:25]}  Rxd7 {[%clk 0:00:24]} 28. Bb5 {[%clk 0:00:24]}  Nc5 {[%clk 0:00:24]} 29. Rb8+ {[%clk 0:00:22]}  Ke7 {[%clk 0:00:22]} 30. Nc6# {[%clk 0:00:22]} 1-0


[Site "https://www.chess.com"]

[Event "Titled Tuesday Blitz August 02 Early 2022"]
[White "Makarian, Rudik"]
[Black "Madaminov, Mukhiddin"]
[WhiteFideId "44105681"]
[BlackFideId "14210703"]
[WhiteElo "2403"]
[BlackElo "2011"]
[Result "1/2-1/2"]
[Round "10"]
[TimeControl "180+1"]
[Date "2022.08.02"]
[WhiteClock "0:00:09"]
[BlackClock "0:00:05"]

1. d3 {[%clk 0:03:00]}  Nf6 {[%clk 0:02:59]} 2. f4 {[%clk 0:03:00]}  d5 {[%clk 0:02:59]} 3. Nf3 {[%clk 0:03:01]}  g6 {[%clk 0:02:59]} 4. g3 {[%clk 0:03:01]}  Bg7 {[%clk 0:02:59]} 5. Bg2 {[%clk 0:03:02]}  O-O {[%clk 0:03:00]} 6. O-O {[%clk 0:03:03]}  b6 {[%clk 0:02:59]} 7. Ne5 {[%clk 0:03:03]}  Bb7 {[%clk 0:02:58]} 8. Nc3 {[%clk 0:03:04]}  Nbd7 {[%clk 0:02:57]} 9. Nxd7 {[%clk 0:03:03]}  Qxd7 {[%clk 0:02:57]} 10. e4 {[%clk 0:03:03]}  dxe4 {[%clk 0:02:54]} 11. dxe4 {[%clk 0:03:03]}  Qxd1 {[%clk 0:02:54]} 12. Rxd1 {[%clk 0:03:04]}  Rfd8 {[%clk 0:02:54]} 13. e5 {[%clk 0:03:04]}  Rxd1+ {[%clk 0:02:24]} 14. Nxd1 {[%clk 0:03:04]}  Bxg2 {[%clk 0:02:24]} 15. Kxg2 {[%clk 0:03:05]}  Nd5 {[%clk 0:02:19]} 16. Bd2 {[%clk 0:03:06]}  e6 {[%clk 0:02:14]} 17. c4 {[%clk 0:03:05]}  Ne7 {[%clk 0:02:14]} 18. Bc3 {[%clk 0:03:03]}  Kf8 {[%clk 0:02:06]} 19. Kf3 {[%clk 0:03:03]}  h5 {[%clk 0:02:01]} 20. h3 {[%clk 0:03:03]}  Ke8 {[%clk 0:01:51]} 21. Nf2 {[%clk 0:03:00]}  a5 {[%clk 0:01:46]} 22. Ne4 {[%clk 0:02:58]}  a4 {[%clk 0:01:43]} 23. g4 {[%clk 0:02:55]}  hxg4+ {[%clk 0:01:34]} 24. hxg4 {[%clk 0:02:56]}  Rd8 {[%clk 0:01:28]} 25. Rh1 {[%clk 0:02:51]}  Nc6 {[%clk 0:01:23]} 26. Ke3 {[%clk 0:02:41]}  Kf8 {[%clk 0:01:10]} 27. Rf1 {[%clk 0:02:33]}  Ke7 {[%clk 0:01:09]} 28. Rh1 {[%clk 0:02:29]}  Kf8 {[%clk 0:01:06]} 29. Nf6 {[%clk 0:02:25]}  Bxf6 {[%clk 0:01:01]} 30. exf6 {[%clk 0:02:25]}  Ke8 {[%clk 0:01:02]} 31. Ke4 {[%clk 0:02:21]}  Nb8 {[%clk 0:00:49]} 32. Rh8+ {[%clk 0:02:09]}  Kd7 {[%clk 0:00:48]} 33. Rh7 {[%clk 0:02:10]}  Ke8 {[%clk 0:00:46]} 34. Be5 {[%clk 0:02:08]}  Na6 {[%clk 0:00:45]} 35. Ke3 {[%clk 0:02:05]}  c6 {[%clk 0:00:30]} 36. Bd4 {[%clk 0:02:02]}  c5 {[%clk 0:00:24]} 37. Bc3 {[%clk 0:02:02]}  Nb8 {[%clk 0:00:13]} 38. Ke4 {[%clk 0:01:50]}  Nc6 {[%clk 0:00:12]} 39. Rh1 {[%clk 0:01:44]}  Rc8 {[%clk 0:00:11]} 40. Rh8+ {[%clk 0:01:42]}  Kd7 {[%clk 0:00:11]} 41. Rh7 {[%clk 0:01:43]}  Ke8 {[%clk 0:00:12]} 42. f5 {[%clk 0:01:39]}  exf5+ {[%clk 0:00:12]} 43. gxf5 {[%clk 0:01:40]}  gxf5+ {[%clk 0:00:13]} 44. Kxf5 {[%clk 0:01:40]}  Rd8 {[%clk 0:00:14]} 45. Rh8+ {[%clk 0:01:34]}  Kd7 {[%clk 0:00:15]} 46. Rh1 {[%clk 0:01:34]}  Ke8 {[%clk 0:00:10]} 47. Ke4 {[%clk 0:01:35]}  Kd7 {[%clk 0:00:05]} 48. Kf5 {[%clk 0:01:15]}  Nd4+ {[%clk 0:00:04]} 49. Bxd4 {[%clk 0:00:31]}  cxd4 {[%clk 0:00:05]} 50. Ke4 {[%clk 0:00:19]}  Kc6 {[%clk 0:00:05]} 51. Kd3 {[%clk 0:00:18]}  Rd6 {[%clk 0:00:04]} 52. Rf1 {[%clk 0:00:18]}  b5 {[%clk 0:00:02]} 53. cxb5+ {[%clk 0:00:16]}  Kxb5 {[%clk 0:00:03]} 54. a3 {[%clk 0:00:16]}  Rd5 {[%clk 0:00:03]} 55. Rf4 {[%clk 0:00:16]}  Kc5 {[%clk 0:00:03]} 56. Rf1 {[%clk 0:00:14]}  Rh5 {[%clk 0:00:03]} 57. Rc1+ {[%clk 0:00:09]}  Kd5 {[%clk 0:00:03]} 58. Rc7 {[%clk 0:00:10]}  Rh3+ {[%clk 0:00:04]} 59. Kd2 {[%clk 0:00:10]}  Rh2+ {[%clk 0:00:04]} 60. Kd3 {[%clk 0:00:11]}  Rh3+ {[%clk 0:00:04]} 61. Kd2 {[%clk 0:00:11]}  Rh2+ {[%clk 0:00:05]} 62. Kd3 {[%clk 0:00:12]}  Rxb2 {[%clk 0:00:05]} 63. Rxf7 {[%clk 0:00:11]}  Rb3+ {[%clk 0:00:05]} 64. Kd2 {[%clk 0:00:11]}  Rxa3 {[%clk 0:00:05]} 65. Rd7+ {[%clk 0:00:09]}  Ke5 {[%clk 0:00:04]} 66. f7 {[%clk 0:00:08]}  Rf3 {[%clk 0:00:05]} 67. Ra7 {[%clk 0:00:08]}  Ke4 {[%clk 0:00:03]} 68. Re7+ {[%clk 0:00:07]}  Kd5 {[%clk 0:00:03]} 69. Ra7 {[%clk 0:00:08]}  a3 {[%clk 0:00:02]} 70. Rxa3 {[%clk 0:00:07]}  Rxf7 {[%clk 0:00:03]} 71. Ra8 {[%clk 0:00:05]}  Rf2+ {[%clk 0:00:02]} 72. Kd3 {[%clk 0:00:05]}  Rf3+ {[%clk 0:00:03]} 73. Kd2 {[%clk 0:00:06]}  Ke4 {[%clk 0:00:03]} 74. Re8+ {[%clk 0:00:07]}  Kd5 {[%clk 0:00:03]} 75. Rd8+ {[%clk 0:00:07]}  Kc4 {[%clk 0:00:04]} 76. Rc8+ {[%clk 0:00:08]}  Kd5 {[%clk 0:00:05]} 77. Rd8+ {[%clk 0:00:09]}  Ke4 {[%clk 0:00:05]} 78. Re8+ {[%clk 0:00:08]}  Kd5 {[%clk 0:00:05]} 79. Rd8+ {[%clk 0:00:09]} 1/2-1/2


[Site "https://www.chess.com"]

[Event "Titled Tuesday Blitz August 02 Early 2022"]
[White "Martinez Alcantara, Jose Eduardo"]
[Black "Aradhya, Garg"]
[WhiteFideId "3805662"]
[BlackFideId "25006746"]
[WhiteElo "2703"]
[BlackElo "2203"]
[Result "1-0"]
[Round "10"]
[TimeControl "180+1"]
[Date "2022.08.02"]
[WhiteClock "0:00:24"]
[BlackClock "0:00:13"]

1. e4 {[%clk 0:03:00]}  e5 {[%clk 0:02:59]} 2. Nf3 {[%clk 0:03:01]}  Nc6 {[%clk 0:03:00]} 3. Bb5 {[%clk 0:03:02]}  a6 {[%clk 0:02:59]} 4. Ba4 {[%clk 0:03:02]}  Nf6 {[%clk 0:02:59]} 5. d3 {[%clk 0:03:03]}  Bc5 {[%clk 0:02:58]} 6. c3 {[%clk 0:03:03]}  b5 {[%clk 0:02:55]} 7. Bb3 {[%clk 0:03:03]}  O-O {[%clk 0:02:55]} 8. Bg5 {[%clk 0:03:03]}  h6 {[%clk 0:02:54]} 9. Bh4 {[%clk 0:03:03]}  Be7 {[%clk 0:02:54]} 10. Nbd2 {[%clk 0:03:03]}  d6 {[%clk 0:02:54]} 11. O-O {[%clk 0:03:00]}  Nh5 {[%clk 0:02:52]} 12. Bg3 {[%clk 0:03:00]}  Nxg3 {[%clk 0:02:51]} 13. hxg3 {[%clk 0:03:01]}  g6 {[%clk 0:02:49]} 14. Bd5 {[%clk 0:03:00]}  Bd7 {[%clk 0:02:49]} 15. d4 {[%clk 0:03:01]}  Bf6 {[%clk 0:02:45]} 16. dxe5 {[%clk 0:03:01]}  dxe5 {[%clk 0:02:44]} 17. Nb3 {[%clk 0:02:57]}  Ra7 {[%clk 0:02:43]} 18. Qd2 {[%clk 0:02:57]}  Ne7 {[%clk 0:02:38]} 19. Nc5 {[%clk 0:02:44]}  Nxd5 {[%clk 0:02:25]} 20. exd5 {[%clk 0:02:44]}  Bf5 {[%clk 0:02:20]} 21. Rfe1 {[%clk 0:02:36]}  Qd6 {[%clk 0:02:13]} 22. b4 {[%clk 0:02:29]}  Rd8 {[%clk 0:01:55]} 23. Rad1 {[%clk 0:02:22]}  Kg7 {[%clk 0:01:48]} 24. Qe3 {[%clk 0:02:22]}  Qb6 {[%clk 0:01:25]} 25. Nxe5 {[%clk 0:02:18]}  Re8 {[%clk 0:01:25]} 26. f4 {[%clk 0:02:15]}  a5 {[%clk 0:01:19]} 27. a3 {[%clk 0:02:14]}  axb4 {[%clk 0:01:19]} 28. axb4 {[%clk 0:02:15]}  Ra2 {[%clk 0:00:59]} 29. d6 {[%clk 0:02:11]}  cxd6 {[%clk 0:00:56]} 30. Ne6+ {[%clk 0:02:09]}  Rxe6 {[%clk 0:00:55]} 31. Qxb6 {[%clk 0:02:09]}  dxe5 {[%clk 0:00:56]} 32. Qc5 {[%clk 0:02:01]}  exf4 {[%clk 0:00:51]} 33. Rxe6 {[%clk 0:01:55]}  Bxe6 {[%clk 0:00:52]} 34. gxf4 {[%clk 0:01:55]}  Bc4 {[%clk 0:00:50]} 35. Re1 {[%clk 0:01:41]}  Ra8 {[%clk 0:00:36]} 36. Re3 {[%clk 0:01:35]}  Rd8 {[%clk 0:00:34]} 37. Kh2 {[%clk 0:01:34]}  h5 {[%clk 0:00:33]} 38. Qc6 {[%clk 0:01:13]}  Rd2 {[%clk 0:00:25]} 39. Qf3 {[%clk 0:00:52]}  Bd5 {[%clk 0:00:23]} 40. Qf1 {[%clk 0:00:53]}  h4 {[%clk 0:00:15]} 41. Kh3 {[%clk 0:00:47]}  Be6+ {[%clk 0:00:15]} 42. Rxe6 {[%clk 0:00:44]}  fxe6 {[%clk 0:00:15]} 43. Qxb5 {[%clk 0:00:44]}  Bxc3 {[%clk 0:00:14]} 44. Kxh4 {[%clk 0:00:30]}  Bf6+ {[%clk 0:00:12]} 45. Kh3 {[%clk 0:00:28]}  Rb2 {[%clk 0:00:11]} 46. Qd7+ {[%clk 0:00:28]}  Kf8 {[%clk 0:00:11]} 47. Qxe6 {[%clk 0:00:26]}  Be7 {[%clk 0:00:11]} 48. Qxg6 {[%clk 0:00:23]}  Rxb4 {[%clk 0:00:11]} 49. g3 {[%clk 0:00:24]}  Rd4 {[%clk 0:00:07]} 50. Kg4 {[%clk 0:00:24]}  Rd6 {[%clk 0:00:07]} 51. Qh7 {[%clk 0:00:25]}  Rf6 {[%clk 0:00:07]} 52. Kf3 {[%clk 0:00:25]}  Rd6 {[%clk 0:00:07]} 53. g4 {[%clk 0:00:25]}  Rb6 {[%clk 0:00:07]} 54. g5 {[%clk 0:00:25]}  Rb3+ {[%clk 0:00:03]} 55. Kg4 {[%clk 0:00:26]}  Rb6 {[%clk 0:00:04]} 56. Qh8+ {[%clk 0:00:26]}  Kf7 {[%clk 0:00:04]} 57. Qd4 {[%clk 0:00:25]}  Rd6 {[%clk 0:00:03]} 58. Qc4+ {[%clk 0:00:26]}  Kg7 {[%clk 0:00:04]} 59. f5 {[%clk 0:00:25]}  Bd8 {[%clk 0:00:04]} 60. Qc5 {[%clk 0:00:24]}  Be7 {[%clk 0:00:04]} 61. f6+ {[%clk 0:00:21]}  Kf7 {[%clk 0:00:05]} 62. fxe7 {[%clk 0:00:19]}  Kxe7 {[%clk 0:00:06]} 63. g6 {[%clk 0:00:18]}  Ke6 {[%clk 0:00:06]} 64. Qxd6+ {[%clk 0:00:18]}  Kxd6 {[%clk 0:00:07]} 65. g7 {[%clk 0:00:19]}  Ke7 {[%clk 0:00:07]} 66. g8=Q {[%clk 0:00:19]}  Kf6 {[%clk 0:00:08]} 67. Qg5+ {[%clk 0:00:20]}  Kf7 {[%clk 0:00:08]} 68. Qh6 {[%clk 0:00:20]}  Ke7 {[%clk 0:00:08]} 69. Qg6 {[%clk 0:00:20]}  Kd7 {[%clk 0:00:09]} 70. Kf5 {[%clk 0:00:20]}  Kc7 {[%clk 0:00:10]} 71. Ke5 {[%clk 0:00:21]}  Kb7 {[%clk 0:00:11]} 72. Kd5 {[%clk 0:00:22]}  Ka7 {[%clk 0:00:12]} 73. Kc5 {[%clk 0:00:22]}  Kb7 {[%clk 0:00:12]} 74. Qf6 {[%clk 0:00:22]}  Kc7 {[%clk 0:00:12]} 75. Qf7+ {[%clk 0:00:22]}  Kd8 {[%clk 0:00:12]} 76. Kc6 {[%clk 0:00:23]}  Kc8 {[%clk 0:00:13]} 77. Qf8# {[%clk 0:00:24]} 1-0


[Site "https://www.chess.com"]

[Event "Titled Tuesday Blitz August 02 Early 2022"]
[White "Pinheiro, Iung Alicio de O."]
[Black "Demchenko, Anton"]
[WhiteFideId "2104350"]
[BlackFideId "4160258"]
[WhiteElo "2283"]
[BlackElo "2539"]
[Result "1-0"]
[Round "10"]
[TimeControl "180+1"]
[Date "2022.08.02"]
[WhiteClock "0:00:06"]
[BlackClock "0:00:03"]

1. e4 {[%clk 0:03:00]}  g6 {[%clk 0:02:57]} 2. d4 {[%clk 0:03:00]}  d6 {[%clk 0:02:57]} 3. Nc3 {[%clk 0:02:59]}  Bg7 {[%clk 0:02:57]} 4. Be3 {[%clk 0:02:59]}  a6 {[%clk 0:02:56]} 5. Qd2 {[%clk 0:02:58]}  b5 {[%clk 0:02:56]} 6. h4 {[%clk 0:02:52]}  h6 {[%clk 0:02:53]} 7. h5 {[%clk 0:02:33]}  g5 {[%clk 0:02:53]} 8. f4 {[%clk 0:02:34]}  gxf4 {[%clk 0:02:53]} 9. Bxf4 {[%clk 0:02:34]}  Bb7 {[%clk 0:02:54]} 10. a3 {[%clk 0:02:32]}  Nd7 {[%clk 0:02:53]} 11. Nf3 {[%clk 0:02:32]}  c5 {[%clk 0:02:51]} 12. Be3 {[%clk 0:02:24]}  Ngf6 {[%clk 0:02:31]} 13. d5 {[%clk 0:02:23]}  Ng4 {[%clk 0:02:30]} 14. Bf4 {[%clk 0:02:18]}  Nge5 {[%clk 0:02:27]} 15. Be2 {[%clk 0:02:16]}  Qc7 {[%clk 0:02:11]} 16. Nxe5 {[%clk 0:02:10]}  Nxe5 {[%clk 0:02:05]} 17. g4 {[%clk 0:02:07]}  O-O-O {[%clk 0:01:35]} 18. O-O-O {[%clk 0:01:34]}  Kb8 {[%clk 0:01:31]} 19. Kb1 {[%clk 0:01:32]}  Qb6 {[%clk 0:01:10]} 20. g5 {[%clk 0:01:21]}  b4 {[%clk 0:00:21]} 21. axb4 {[%clk 0:01:09]}  Qxb4 {[%clk 0:00:15]} 22. gxh6 {[%clk 0:00:46]}  Bf6 {[%clk 0:00:15]} 23. Bg5 {[%clk 0:00:45]}  Bxg5 {[%clk 0:00:16]} 24. Qxg5 {[%clk 0:00:46]}  Rde8 {[%clk 0:00:17]} 25. Qe3 {[%clk 0:00:38]}  Ka7 {[%clk 0:00:17]} 26. Na2 {[%clk 0:00:34]}  Qb6 {[%clk 0:00:17]} 27. Rhg1 {[%clk 0:00:30]}  Rb8 {[%clk 0:00:16]} 28. b3 {[%clk 0:00:30]}  Bc8 {[%clk 0:00:16]} 29. Rg7 {[%clk 0:00:26]}  Bd7 {[%clk 0:00:16]} 30. h7 {[%clk 0:00:20]}  a5 {[%clk 0:00:15]} 31. Kb2 {[%clk 0:00:20]}  a4 {[%clk 0:00:15]} 32. Ra1 {[%clk 0:00:20]}  Kb7 {[%clk 0:00:16]} 33. Nc3 {[%clk 0:00:16]}  axb3 {[%clk 0:00:16]} 34. cxb3 {[%clk 0:00:14]}  Kc7 {[%clk 0:00:16]} 35. Na4 {[%clk 0:00:13]}  Qb4 {[%clk 0:00:14]} 36. Qc3 {[%clk 0:00:10]}  Bxa4 {[%clk 0:00:04]} 37. Qxb4 {[%clk 0:00:09]}  Rxb4 {[%clk 0:00:03]} 38. Rxa4 {[%clk 0:00:09]}  Rxa4 {[%clk 0:00:03]} 39. bxa4 {[%clk 0:00:10]}  Kb6 {[%clk 0:00:02]} 40. Bb5 {[%clk 0:00:06]}  Ka5 {[%clk 0:00:02]} 41. Be8 {[%clk 0:00:05]}  Rxe8 {[%clk 0:00:01]} 42. Rg8 {[%clk 0:00:05]}  Kxa4 {[%clk 0:00:01]} 43. Rxe8 {[%clk 0:00:05]}  Nd3+ {[%clk 0:00:02]} 44. Kc3 {[%clk 0:00:05]}  Nf4 {[%clk 0:00:03]} 45. h8=Q {[%clk 0:00:06]} 1-0


[Site "https://www.chess.com"]

[Event "Titled Tuesday Blitz August 02 Early 2022"]
[White "Pranav Anand"]
[Black "Aldokhin, Ivan"]
[WhiteFideId "46626786"]
[BlackFideId "24115720"]
[WhiteElo "2259"]
[BlackElo "2246"]
[Result "1-0"]
[Round "10"]
[TimeControl "180+1"]
[Date "2022.08.02"]
[WhiteClock "0:01:10"]
[BlackClock "0:00:02"]

1. e4 {[%clk 0:02:56]}  c5 {[%clk 0:03:00]} 2. Nf3 {[%clk 0:02:54]}  e6 {[%clk 0:03:00]} 3. g3 {[%clk 0:02:54]}  Nc6 {[%clk 0:02:58]} 4. Bg2 {[%clk 0:02:54]}  Nf6 {[%clk 0:02:29]} 5. Qe2 {[%clk 0:02:52]}  d6 {[%clk 0:02:26]} 6. O-O {[%clk 0:02:52]}  Be7 {[%clk 0:02:27]} 7. c3 {[%clk 0:02:51]}  O-O {[%clk 0:02:27]} 8. d4 {[%clk 0:02:51]}  cxd4 {[%clk 0:02:27]} 9. cxd4 {[%clk 0:02:52]}  d5 {[%clk 0:02:27]} 10. e5 {[%clk 0:02:52]}  Ne4 {[%clk 0:02:25]} 11. Nbd2 {[%clk 0:02:52]}  Nxd2 {[%clk 0:02:20]} 12. Bxd2 {[%clk 0:02:53]}  Bd7 {[%clk 0:02:20]} 13. h4 {[%clk 0:02:53]}  h6 {[%clk 0:02:20]} 14. Rac1 {[%clk 0:02:50]}  Rc8 {[%clk 0:02:17]} 15. Be3 {[%clk 0:02:39]}  Qb6 {[%clk 0:02:10]} 16. Nh2 {[%clk 0:02:35]}  f5 {[%clk 0:00:45]} 17. exf6 {[%clk 0:02:23]}  Bxf6 {[%clk 0:00:45]} 18. Qg4 {[%clk 0:02:23]}  Nxd4 {[%clk 0:00:20]} 19. Rxc8 {[%clk 0:02:20]}  Bxc8 {[%clk 0:00:14]} 20. Bxh6 {[%clk 0:02:20]}  Qxb2 {[%clk 0:00:13]} 21. Bg5 {[%clk 0:02:08]}  Qe2 {[%clk 0:00:09]} 22. Nf3 {[%clk 0:01:48]}  Bxg5 {[%clk 0:00:04]} 23. Qxd4 {[%clk 0:01:47]}  Bf6 {[%clk 0:00:04]} 24. Qxa7 {[%clk 0:01:45]}  e5 {[%clk 0:00:04]} 25. Re1 {[%clk 0:01:43]}  Qb2 {[%clk 0:00:03]} 26. Qa5 {[%clk 0:01:38]}  Be6 {[%clk 0:00:02]} 27. Qc7 {[%clk 0:01:18]}  e4 {[%clk 0:00:03]} 28. Qd6 {[%clk 0:01:18]}  exf3 {[%clk 0:00:02]} 29. Qxe6+ {[%clk 0:01:18]}  Kh8 {[%clk 0:00:03]} 30. Bxf3 {[%clk 0:01:15]}  Bd4 {[%clk 0:00:03]} 31. Re2 {[%clk 0:01:15]}  Qa1+ {[%clk 0:00:04]} 32. Kg2 {[%clk 0:01:16]}  Qc3 {[%clk 0:00:04]} 33. Qg4 {[%clk 0:01:16]}  Qd3 {[%clk 0:00:04]} 34. Bxd5 {[%clk 0:01:14]}  Qh7 {[%clk 0:00:04]} 35. Be4 {[%clk 0:01:12]}  Qh6 {[%clk 0:00:03]} 36. Rc2 {[%clk 0:01:11]}  Bf6 {[%clk 0:00:03]} 37. Rc5 {[%clk 0:01:10]}  g6 {[%clk 0:00:02]} 38. Bxg6 {[%clk 0:01:10]}  Bd4 {[%clk 0:00:02]} 39. Rh5 {[%clk 0:01:10]} 1-0


[Site "https://www.chess.com"]